Workbook

Sheet Worksheet
F1: Solve these simultaneous equations
F3: 1 | G3: 1 | H3: y | I3: + | J3: 8 | K3: z | L3: = | N3: 11 | P3: y | Q3: = | S3: 11 | T3: z | U3: = | W3: 0 | Y3: 13 | Z3: 4 | AA3: f | AB3: – | AC3: 5 | AD3: g | AE3: = | AG3: 38 | AI3: f | AJ3: = | AL3: 22 | AM3: g | AN3: = | AP3: 10
A4: Variables | G4: 4 | H4: y | I4: – | J4: 2 | K4: z | L4: = | N4: 44 | Z4: 10 | AA4: f | AB4: + | AC4: 9 | AD4: g | AE4: = | AG4: 310
A5: SHOW ANSWERS? | C5: FALSE
A6: Number of questions (minimum 10, maximum 26) | C6: 26 | F6: 2 | G6: 1 | H6: v | I6: – | J6: 9 | K6: w | L6: = | M6: – | N6: 354 | P6: v | Q6: = | S6: 6 | T6: w | U6: = | W6: 40 | Y6: 14 | Z6: 8 | AA6: y | AB6: – | AC6: 8 | AD6: z | AE6: = | AG6: 8 | AI6: y | AJ6: = | AL6: 20 | AM6: z | AN6: = | AP6: 19
G7: 5 | H7: v | I7: + | J7: 9 | K7: w | L7: = | N7: 390 | Z7: 1 | AA7: y | AB7: + | AC7: 5 | AD7: z | AE7: = | AG7: 115
A8: Solutions
A9: Allow solutions to be negative | C9: FALSE | F9: 3 | G9: 8 | H9: c | I9: – | J9: 4 | K9: d | L9: = | N9: 148 | P9: c | Q9: = | S9: 28 | T9: d | U9: = | W9: 19 | Y9: 15 | Z9: 8 | AA9: s | AB9: + | AC9: 10 | AD9: t | AE9: = | AG9: 338 | AI9: s | AJ9: = | AL9: 21 | AM9: t | AN9: = | AP9: 17
A10: Maximum value of solutions | C10: 45 | G10: 3 | H10: c | I10: – | J10: 6 | K10: d | L10: = | M10: – | N10: 30 | Z10: 2 | AA10: s | AB10: + | AC10: 7 | AD10: t | AE10: = | AG10: 161
A12: Coefficients of left-hand side | F12: 4 | G12: 5 | H12: x | I12: + | J12: 2 | K12: y | L12: = | N12: 115 | P12: x | Q12: = | S12: 11 | T12: y | U12: = | W12: 30 | Y12: 16 | Z12: 1 | AA12: b | AB12: + | AC12: 10 | AD12: c | AE12: = | AG12: 135 | AI12: b | AJ12: = | AL12: 15 | AM12: c | AN12: = | AP12: 12
A13: Maximum value of coefficients | C13: 10 | G13: 5 | H13: x | I13: + | J13: 6 | K13: y | L13: = | N13: 235 | Z13: 6 | AA13: b | AB13: – | AC13: 10 | AD13: c | AE13: = | AF13: – | AG13: 30
A14: Signs in the middle of left-hand side | B14: All positive | C14: 4 | D14: 1
B15: All negative | D15: (likely to lead to some negative RHS) | F15: 5 | G15: 10 | H15: x | I15: + | J15: 3 | K15: y | L15: = | N15: 453 | P15: x | Q15: = | S15: 33 | T15: y | U15: = | W15: 41 | Y15: 17 | Z15: 9 | AA15: e | AB15: – | AC15: 3 | AD15: f | AE15: = | AG15: 189 | AI15: e | AJ15: = | AL15: 21 | AM15: f | AN15: = | AP15: 0
B16: One of each | D16: (likely to lead to some negative RHS) | G16: 2 | H16: x | I16: – | J16: 7 | K16: y | L16: = | M16: – | N16: 221 | Z16: 3 | AA16: e | AB16: – | AC16: 1 | AD16: f | AE16: = | AG16: 63
B17: A random mixture | D17: (likely to lead to some negative RHS)
F18: 6 | G18: 5 | H18: x | I18: + | J18: 2 | K18: y | L18: = | N18: 65 | P18: x | Q18: = | S18: 9 | T18: y | U18: = | W18: 10 | Y18: 18 | Z18: 9 | AA18: v | AB18: + | AC18: 6 | AD18: w | AE18: = | AG18: 486 | AI18: v | AJ18: = | AL18: 24 | AM18: w | AN18: = | AP18: 45
G19: 9 | H19: x | I19: + | J19: 5 | K19: y | L19: = | N19: 131 | Z19: 8 | AA19: v | AB19: + | AC19: 4 | AD19: w | AE19: = | AG19: 372
F21: 7 | G21: 5 | H21: e | I21: – | J21: 9 | K21: f | L21: = | M21: – | N21: 96 | P21: e | Q21: = | S21: 6 | T21: f | U21: = | W21: 14 | Y21: 19 | Z21: 8 | AA21: b | AB21: – | AC21: 1 | AD21: c | AE21: = | AG21: 135 | AI21: b | AJ21: = | AL21: 20 | AM21: c | AN21: = | AP21: 25
G22: 8 | H22: e | I22: + | J22: 7 | K22: f | L22: = | N22: 146 | Z22: 7 | AA22: b | AB22: + | AC22: 6 | AD22: c | AE22: = | AG22: 290
F24: 8 | G24: 1 | H24: f | I24: – | J24: 10 | K24: g | L24: = | M24: – | N24: 428 | P24: f | Q24: = | S24: 22 | T24: g | U24: = | W24: 45 | Y24: 20 | Z24: 9 | AA24: x | AB24: – | AC24: 5 | AD24: y | AE24: = | AG24: 3 | AI24: x | AJ24: = | AL24: 17 | AM24: y | AN24: = | AP24: 30
G25: 7 | H25: f | I25: + | J25: 10 | K25: g | L25: = | N25: 604 | Z25: 2 | AA25: x | AB25: + | AC25: 2 | AD25: y | AE25: = | AG25: 94
F27: 9 | G27: 5 | H27: y | I27: + | J27: 1 | K27: z | L27: = | N27: 142 | P27: y | Q27: = | S27: 26 | T27: z | U27: = | W27: 12 | Y27: 21 | Z27: 1 | AA27: m | AB27: – | AC27: 3 | AD27: n | AE27: = | AF27: – | AG27: 29 | AI27: m | AJ27: = | AL27: 13 | AM27: n | AN27: = | AP27: 14
G28: 9 | H28: y | I28: – | J28: 7 | K28: z | L28: = | N28: 150 | Z28: 5 | AA28: m | AB28: – | AC28: 3 | AD28: n | AE28: = | AG28: 23
F30: 10 | G30: 3 | H30: y | I30: – | J30: 9 | K30: z | L30: = | M30: – | N30: 243 | P30: y | Q30: = | S30: 45 | T30: z | U30: = | W30: 42 | Y30: 22 | Z30: 7 | AA30: y | AB30: + | AC30: 7 | AD30: z | AE30: = | AG30: 434 | AI30: y | AJ30: = | AL30: 35 | AM30: z | AN30: = | AP30: 27
G31: 5 | H31: y | I31: + | J31: 7 | K31: z | L31: = | N31: 519 | Z31: 9 | AA31: y | AB31: + | AC31: 2 | AD31: z | AE31: = | AG31: 369
F33: 11 | G33: 2 | H33: f | I33: + | J33: 9 | K33: g | L33: = | N33: 359 | P33: f | Q33: = | S33: 13 | T33: g | U33: = | W33: 37 | Y33: 23 | Z33: 6 | AA33: s | AB33: – | AC33: 7 | AD33: t | AE33: = | AG33: 47 | AI33: s | AJ33: = | AL33: 9 | AM33: t | AN33: = | AP33: 1
G34: 1 | H34: f | I34: + | J34: 9 | K34: g | L34: = | N34: 346 | Z34: 7 | AA34: s | AB34: – | AC34: 1 | AD34: t | AE34: = | AG34: 62
F36: 12 | G36: 2 | H36: p | I36: + | J36: 7 | K36: q | L36: = | N36: 324 | P36: p | Q36: = | S36: 8 | T36: q | U36: = | W36: 44 | Y36: 24 | Z36: 2 | AA36: s | AB36: – | AC36: 1 | AD36: t | AE36: = | AG36: 22 | AI36: s | AJ36: = | AL36: 21 | AM36: t | AN36: = | AP36: 20
G37: 6 | H37: p | I37: – | J37: 3 | K37: q | L37: = | M37: – | N37: 84 | Z37: 5 | AA37: s | AB37: – | AC37: 9 | AD37: t | AE37: = | AF37: – | AG37: 75
F39: 13 | G39: 6 | H39: y | I39: – | J39: 3 | K39: z | L39: = | N39: 165 | P39: y | Q39: = | S39: 36 | T39: z | U39: = | W39: 17 | Y39: 25 | Z39: 10 | AA39: g | AB39: + | AC39: 5 | AD39: h | AE39: = | AG39: 275 | AI39: g | AJ39: = | AL39: 18 | AM39: h | AN39: = | AP39: 19
G40: 6 | H40: y | I40: + | J40: 1 | K40: z | L40: = | N40: 233 | Z40: 4 | AA40: g | AB40: – | AC40: 7 | AD40: h | AE40: = | AF40: – | AG40: 61

Sheet SYSTEM FORMULAE
A1: 1 | B1: =RANDBETWEEN(1,Worksheet!$C$13) -> 10 | C1: =K1 -> u | D1: =IF(Worksheet!$C$14=1,"+",IF(Worksheet!$C$14=2,"–",CHOOSE(RANDBETWEEN(1,2),"+","–"))) -> – | E1: =RANDBETWEEN(1,Worksheet!$C$13) -> 5 | F1: =O1 -> v | G1: = | H1: =IF(I1<0,"–","") ->  | I1: =IF(D1="+",B1*N1+E1*R1,B1*N1-E1*R1) -> 160 | K1: =CHOOSE(RANDBETWEEN(1,24),"a","b","c","d","e","f","g","x","j","y","y","m","x","p","q","r","s","t","u","v","w","x","y","a") -> u | L1: = | M1: =IF(N1<0,"–","") ->  | N1: =IF(Worksheet!$C$9,RANDBETWEEN(-Worksheet!$C$10,Worksheet!$C$10),RANDBETWEEN(0,Worksheet!$C$10)) -> 29 | O1: =CHAR(CODE(K1)+1) -> v | P1: = | Q1: =IF(R1<0,"–","") ->  | R1: =IF(Worksheet!$C$9,RANDBETWEEN(-Worksheet!$C$10,Worksheet!$C$10),RANDBETWEEN(0,Worksheet!$C$10)) -> 26 | T1: =MAX(A1:A36)+1 -> 13 | U1: =RANDBETWEEN(1,Worksheet!$C$13) -> 4 | V1: =AD1 -> u | W1: =IF(Worksheet!$C$14=1,"+",IF(Worksheet!$C$14=2,"–",CHOOSE(RANDBETWEEN(1,2),"+","–"))) -> – | X1: =RANDBETWEEN(1,Worksheet!$C$13) -> 10 | Y1: =AH1 -> v | Z1: = | AA1: =IF(AB1<0,"–","") ->  | AB1: =IF(W1="+",U1*AG1+X1*AK1,U1*AG1-X1*AK1) -> 76 | AD1: =CHOOSE(RANDBETWEEN(1,24),"a","b","c","d","e","f","g","x","j","y","y","m","x","p","q","r","s","t","u","v","w","x","y","a") -> u | AE1: = | AF1: =IF(AG1<0,"–","") ->  | AG1: =IF(Worksheet!$C$9,RANDBETWEEN(-Worksheet!$C$10,Worksheet!$C$10),RANDBETWEEN(0,Worksheet!$C$10)) -> 19 | AH1: =CHAR(CODE(AD1)+1) -> v | AI1: = | AJ1: =IF(AK1<0,"–","") ->  | AK1: =IF(Worksheet!$C$9,RANDBETWEEN(-Worksheet!$C$10,Worksheet!$C$10),RANDBETWEEN(0,Worksheet!$C$10)) -> 0
B2: =RANDBETWEEN(1,Worksheet!$C$13) -> 3 | C2: =K1 -> u | D2: =IF(Worksheet!$C$14=1,"+",IF(Worksheet!$C$14=2,"–",IF(Worksheet!$C$14=4,CHOOSE(RANDBETWEEN(1,2),"+","–"),IF(D1="+","–","+")))) -> – | E2: =RANDBETWEEN(1,Worksheet!$C$13) -> 4 | F2: =O1 -> v | G2: = | H2: =IF(I2<0,"–","") -> – | I2: =IF(D2="+",B2*N1+E2*R1,B2*N1-E2*R1) -> -17 | U2: =RANDBETWEEN(1,Worksheet!$C$13) -> 3 | V2: =AD1 -> u | W2: =IF(Worksheet!$C$14=1,"+",IF(Worksheet!$C$14=2,"–",IF(Worksheet!$C$14=4,CHOOSE(RANDBETWEEN(1,2),"+","–"),IF(W1="+","–","+")))) -> – | X2: =RANDBETWEEN(1,Worksheet!$C$13) -> 7 | Y2: =AH1 -> v | Z2: = | AA2: =IF(AB2<0,"–","") ->  | AB2: =IF(W2="+",U2*AG1+X2*AK1,U2*AG1-X2*AK1) -> 57
A4: =IF(ISERROR(A1+1),"",IF(A1+1<=Worksheet!$C$6/2,A1+1,"")) -> 2 | B4: =RANDBETWEEN(1,Worksheet!$C$13) -> 1 | C4: =K4 -> p | D4: =IF(Worksheet!$C$14=1,"+",IF(Worksheet!$C$14=2,"–",CHOOSE(RANDBETWEEN(1,2),"+","–"))) -> – | E4: =RANDBETWEEN(1,Worksheet!$C$13) -> 2 | F4: =O4 -> q | G4: = | H4: =IF(I4<0,"–","") ->  | I4: =IF(D4="+",B4*N4+E4*R4,B4*N4-E4*R4) -> 5 | K4: =CHOOSE(RANDBETWEEN(1,24),"a","b","c","d","e","f","g","x","j","y","y","m","x","p","q","r","s","t","u","v","w","x","y","a") -> p | L4: = | M4: =IF(N4<0,"–","") ->  | N4: =IF(Worksheet!$C$9,RANDBETWEEN(-Worksheet!$C$10,Worksheet!$C$10),RANDBETWEEN(0,Worksheet!$C$10)) -> 39 | O4: =CHAR(CODE(K4)+1) -> q | P4: = | Q4: =IF(R4<0,"–","") ->  | R4: =IF(Worksheet!$C$9,RANDBETWEEN(-Worksheet!$C$10,Worksheet!$C$10),RANDBETWEEN(0,Worksheet!$C$10)) -> 17 | T4: =IF(ISERROR($A1+1),"",IF($A1+1<=Worksheet!$C$6/2,T1+1,"")) -> 14 | U4: =RANDBETWEEN(1,Worksheet!$C$13) -> 10 | V4: =AD4 -> s | W4: =IF(Worksheet!$C$14=1,"+",IF(Worksheet!$C$14=2,"–",CHOOSE(RANDBETWEEN(1,2),"+","–"))) -> – | X4: =RANDBETWEEN(1,Worksheet!$C$13) -> 2 | Y4: =AH4 -> t | Z4: = | AA4: =IF(AB4<0,"–","") ->  | AB4: =IF(W4="+",U4*AG4+X4*AK4,U4*AG4-X4*AK4) -> 320 | AD4: =CHOOSE(RANDBETWEEN(1,24),"a","b","c","d","e","f","g","x","j","y","y","m","x","p","q","r","s","t","u","v","w","x","y","a") -> s | AE4: = | AF4: =IF(AG4<0,"–","") ->  | AG4: =IF(Worksheet!$C$9,RANDBETWEEN(-Worksheet!$C$10,Worksheet!$C$10),RANDBETWEEN(0,Worksheet!$C$10)) -> 38 | AH4: =CHAR(CODE(AD4)+1) -> t | AI4: = | AJ4: =IF(AK4<0,"–","") ->  | AK4: =IF(Worksheet!$C$9,RANDBETWEEN(-Worksheet!$C$10,Worksheet!$C$10),RANDBETWEEN(0,Worksheet!$C$10)) -> 30
B5: =RANDBETWEEN(1,Worksheet!$C$13) -> 4 | C5: =K4 -> p | D5: =IF(Worksheet!$C$14=1,"+",IF(Worksheet!$C$14=2,"–",IF(Worksheet!$C$14=4,CHOOSE(RANDBETWEEN(1,2),"+","–"),IF(D4="+","–","+")))) -> – | E5: =RANDBETWEEN(1,Worksheet!$C$13) -> 8 | F5: =O4 -> q | G5: = | H5: =IF(I5<0,"–","") ->  | I5: =IF(D5="+",B5*N4+E5*R4,B5*N4-E5*R4) -> 20 | U5: =RANDBETWEEN(1,Worksheet!$C$13) -> 8 | V5: =AD4 -> s | W5: =IF(Worksheet!$C$14=1,"+",IF(Worksheet!$C$14=2,"–",IF(Worksheet!$C$14=4,CHOOSE(RANDBETWEEN(1,2),"+","–"),IF(W4="+","–","+")))) -> – | X5: =RANDBETWEEN(1,Worksheet!$C$13) -> 8 | Y5: =AH4 -> t | Z5: = | AA5: =IF(AB5<0,"–","") ->  | AB5: =IF(W5="+",U5*AG4+X5*AK4,U5*AG4-X5*AK4) -> 64
A7: =IF(ISERROR(A4+1),"",IF(A4+1<=Worksheet!$C$6/2,A4+1,"")) -> 3 | B7: =RANDBETWEEN(1,Worksheet!$C$13) -> 6 | C7: =K7 -> j | D7: =IF(Worksheet!$C$14=1,"+",IF(Worksheet!$C$14=2,"–",CHOOSE(RANDBETWEEN(1,2),"+","–"))) -> + | E7: =RANDBETWEEN(1,Worksheet!$C$13) -> 7 | F7: =O7 -> k | G7: = | H7: =IF(I7<0,"–","") ->  | I7: =IF(D7="+",B7*N7+E7*R7,B7*N7-E7*R7) -> 240 | K7: =CHOOSE(RANDBETWEEN(1,24),"a","b","c","d","e","f","g","x","j","y","y","m","x","p","q","r","s","t","u","v","w","x","y","a") -> j | L7: = | M7: =IF(N7<0,"–","") ->  | N7: =IF(Worksheet!$C$9,RANDBETWEEN(-Worksheet!$C$10,Worksheet!$C$10),RANDBETWEEN(0,Worksheet!$C$10)) -> 19 | O7: =CHAR(CODE(K7)+1) -> k | P7: = | Q7: =IF(R7<0,"–","") ->  | R7: =IF(Worksheet!$C$9,RANDBETWEEN(-Worksheet!$C$10,Worksheet!$C$10),RANDBETWEEN(0,Worksheet!$C$10)) -> 18 | T7: =IF(ISERROR($A4+1),"",IF($A4+1<=Worksheet!$C$6/2,T4+1,"")) -> 15 | U7: =RANDBETWEEN(1,Worksheet!$C$13) -> 8 | V7: =AD7 -> g | W7: =IF(Worksheet!$C$14=1,"+",IF(Worksheet!$C$14=2,"–",CHOOSE(RANDBETWEEN(1,2),"+","–"))) -> – | X7: =RANDBETWEEN(1,Worksheet!$C$13) -> 5 | Y7: =AH7 -> h | Z7: = | AA7: =IF(AB7<0,"–","") -> – | AB7: =IF(W7="+",U7*AG7+X7*AK7,U7*AG7-X7*AK7) -> -42 | AD7: =CHOOSE(RANDBETWEEN(1,24),"a","b","c","d","e","f","g","x","j","y","y","m","x","p","q","r","s","t","u","v","w","x","y","a") -> g | AE7: = | AF7: =IF(AG7<0,"–","") ->  | AG7: =IF(Worksheet!$C$9,RANDBETWEEN(-Worksheet!$C$10,Worksheet!$C$10),RANDBETWEEN(0,Worksheet!$C$10)) -> 21 | AH7: =CHAR(CODE(AD7)+1) -> h | AI7: = | AJ7: =IF(AK7<0,"–","") ->  | AK7: =IF(Worksheet!$C$9,RANDBETWEEN(-Worksheet!$C$10,Worksheet!$C$10),RANDBETWEEN(0,Worksheet!$C$10)) -> 42
B8: =RANDBETWEEN(1,Worksheet!$C$13) -> 8 | C8: =K7 -> j | D8: =IF(Worksheet!$C$14=1,"+",IF(Worksheet!$C$14=2,"–",IF(Worksheet!$C$14=4,CHOOSE(RANDBETWEEN(1,2),"+","–"),IF(D7="+","–","+")))) -> – | E8: =RANDBETWEEN(1,Worksheet!$C$13) -> 4 | F8: =O7 -> k | G8: = | H8: =IF(I8<0,"–","") ->  | I8: =IF(D8="+",B8*N7+E8*R7,B8*N7-E8*R7) -> 80 | U8: =RANDBETWEEN(1,Worksheet!$C$13) -> 8 | V8: =AD7 -> g | W8: =IF(Worksheet!$C$14=1,"+",IF(Worksheet!$C$14=2,"–",IF(Worksheet!$C$14=4,CHOOSE(RANDBETWEEN(1,2),"+","–"),IF(W7="+","–","+")))) -> – | X8: =RANDBETWEEN(1,Worksheet!$C$13) -> 9 | Y8: =AH7 -> h | Z8: = | AA8: =IF(AB8<0,"–","") -> – | AB8: =IF(W8="+",U8*AG7+X8*AK7,U8*AG7-X8*AK7) -> -210
A10: =IF(ISERROR(A7+1),"",IF(A7+1<=Worksheet!$C$6/2,A7+1,"")) -> 4 | B10: =RANDBETWEEN(1,Worksheet!$C$13) -> 5 | C10: =K10 -> t | D10: =IF(Worksheet!$C$14=1,"+",IF(Worksheet!$C$14=2,"–",CHOOSE(RANDBETWEEN(1,2),"+","–"))) -> + | E10: =RANDBETWEEN(1,Worksheet!$C$13) -> 10 | F10: =O10 -> u | G10: = | H10: =IF(I10<0,"–","") ->  | I10: =IF(D10="+",B10*N10+E10*R10,B10*N10-E10*R10) -> 250 | K10: =CHOOSE(RANDBETWEEN(1,24),"a","b","c","d","e","f","g","x","j","y","y","m","x","p","q","r","s","t","u","v","w","x","y","a") -> t | L10: = | M10: =IF(N10<0,"–","") ->  | N10: =IF(Worksheet!$C$9,RANDBETWEEN(-Worksheet!$C$10,Worksheet!$C$10),RANDBETWEEN(0,Worksheet!$C$10)) -> 12 | O10: =CHAR(CODE(K10)+1) -> u | P10: = | Q10: =IF(R10<0,"–","") ->  | R10: =IF(Worksheet!$C$9,RANDBETWEEN(-Worksheet!$C$10,Worksheet!$C$10),RANDBETWEEN(0,Worksheet!$C$10)) -> 19 | T10: =IF(ISERROR($A7+1),"",IF($A7+1<=Worksheet!$C$6/2,T7+1,"")) -> 16 | U10: =RANDBETWEEN(1,Worksheet!$C$13) -> 10 | V10: =AD10 -> c | W10: =IF(Worksheet!$C$14=1,"+",IF(Worksheet!$C$14=2,"–",CHOOSE(RANDBETWEEN(1,2),"+","–"))) -> – | X10: =RANDBETWEEN(1,Worksheet!$C$13) -> 2 | Y10: =AH10 -> d | Z10: = | AA10: =IF(AB10<0,"–","") -> – | AB10: =IF(W10="+",U10*AG10+X10*AK10,U10*AG10-X10*AK10) -> -2 | AD10: =CHOOSE(RANDBETWEEN(1,24),"a","b","c","d","e","f","g","x","j","y","y","m","x","p","q","r","s","t","u","v","w","x","y","a") -> c | AE10: = | AF10: =IF(AG10<0,"–","") ->  | AG10: =IF(Worksheet!$C$9,RANDBETWEEN(-Worksheet!$C$10,Worksheet!$C$10),RANDBETWEEN(0,Worksheet!$C$10)) -> 5 | AH10: =CHAR(CODE(AD10)+1) -> d | AI10: = | AJ10: =IF(AK10<0,"–","") ->  | AK10: =IF(Worksheet!$C$9,RANDBETWEEN(-Worksheet!$C$10,Worksheet!$C$10),RANDBETWEEN(0,Worksheet!$C$10)) -> 26
B11: =RANDBETWEEN(1,Worksheet!$C$13) -> 10 | C11: =K10 -> t | D11: =IF(Worksheet!$C$14=1,"+",IF(Worksheet!$C$14=2,"–",IF(Worksheet!$C$14=4,CHOOSE(RANDBETWEEN(1,2),"+","–"),IF(D10="+","–","+")))) -> – | E11: =RANDBETWEEN(1,Worksheet!$C$13) -> 5 | F11: =O10 -> u | G11: = | H11: =IF(I11<0,"–","") ->  | I11: =IF(D11="+",B11*N10+E11*R10,B11*N10-E11*R10) -> 25 | U11: =RANDBETWEEN(1,Worksheet!$C$13) -> 8 | V11: =AD10 -> c | W11: =IF(Worksheet!$C$14=1,"+",IF(Worksheet!$C$14=2,"–",IF(Worksheet!$C$14=4,CHOOSE(RANDBETWEEN(1,2),"+","–"),IF(W10="+","–","+")))) -> + | X11: =RANDBETWEEN(1,Worksheet!$C$13) -> 8 | Y11: =AH10 -> d | Z11: = | AA11: =IF(AB11<0,"–","") ->  | AB11: =IF(W11="+",U11*AG10+X11*AK10,U11*AG10-X11*AK10) -> 248
A13: =IF(ISERROR(A10+1),"",IF(A10+1<=Worksheet!$C$6/2,A10+1,"")) -> 5 | B13: =RANDBETWEEN(1,Worksheet!$C$13) -> 8 | C13: =K13 -> b | D13: =IF(Worksheet!$C$14=1,"+",IF(Worksheet!$C$14=2,"–",CHOOSE(RANDBETWEEN(1,2),"+","–"))) -> + | E13: =RANDBETWEEN(1,Worksheet!$C$13) -> 2 | F13: =O13 -> c | G13: = | H13: =IF(I13<0,"–","") ->  | I13: =IF(D13="+",B13*N13+E13*R13,B13*N13-E13*R13) -> 20 | K13: =CHOOSE(RANDBETWEEN(1,24),"a","b","c","d","e","f","g","x","j","y","y","m","x","p","q","r","s","t","u","v","w","x","y","a") -> b | L13: = | M13: =IF(N13<0,"–","") ->  | N13: =IF(Worksheet!$C$9,RANDBETWEEN(-Worksheet!$C$10,Worksheet!$C$10),RANDBETWEEN(0,Worksheet!$C$10)) -> 0 | O13: =CHAR(CODE(K13)+1) -> c | P13: = | Q13: =IF(R13<0,"–","") ->  | R13: =IF(Worksheet!$C$9,RANDBETWEEN(-Worksheet!$C$10,Worksheet!$C$10),RANDBETWEEN(0,Worksheet!$C$10)) -> 10 | T13: =IF(ISERROR($A10+1),"",IF($A10+1<=Worksheet!$C$6/2,T10+1,"")) -> 17 | U13: =RANDBETWEEN(1,Worksheet!$C$13) -> 4 | V13: =AD13 -> t | W13: =IF(Worksheet!$C$14=1,"+",IF(Worksheet!$C$14=2,"–",CHOOSE(RANDBETWEEN(1,2),"+","–"))) -> – | X13: =RANDBETWEEN(1,Worksheet!$C$13) -> 3 | Y13: =AH13 -> u | Z13: = | AA13: =IF(AB13<0,"–","") -> – | AB13: =IF(W13="+",U13*AG13+X13*AK13,U13*AG13-X13*AK13) -> -28 | AD13: =CHOOSE(RANDBETWEEN(1,24),"a","b","c","d","e","f","g","x","j","y","y","m","x","p","q","r","s","t","u","v","w","x","y","a") -> t | AE13: = | AF13: =IF(AG13<0,"–","") ->  | AG13: =IF(Worksheet!$C$9,RANDBETWEEN(-Worksheet!$C$10,Worksheet!$C$10),RANDBETWEEN(0,Worksheet!$C$10)) -> 5 | AH13: =CHAR(CODE(AD13)+1) -> u | AI13: = | AJ13: =IF(AK13<0,"–","") ->  | AK13: =IF(Worksheet!$C$9,RANDBETWEEN(-Worksheet!$C$10,Worksheet!$C$10),RANDBETWEEN(0,Worksheet!$C$10)) -> 16
B14: =RANDBETWEEN(1,Worksheet!$C$13) -> 6 | C14: =K13 -> b | D14: =IF(Worksheet!$C$14=1,"+",IF(Worksheet!$C$14=2,"–",IF(Worksheet!$C$14=4,CHOOSE(RANDBETWEEN(1,2),"+","–"),IF(D13="+","–","+")))) -> – | E14: =RANDBETWEEN(1,Worksheet!$C$13) -> 7 | F14: =O13 -> c | G14: = | H14: =IF(I14<0,"–","") -> – | I14: =IF(D14="+",B14*N13+E14*R13,B14*N13-E14*R13) -> -70 | U14: =RANDBETWEEN(1,Worksheet!$C$13) -> 3 | V14: =AD13 -> t | W14: =IF(Worksheet!$C$14=1,"+",IF(Worksheet!$C$14=2,"–",IF(Worksheet!$C$14=4,CHOOSE(RANDBETWEEN(1,2),"+","–"),IF(W13="+","–","+")))) -> – | X14: =RANDBETWEEN(1,Worksheet!$C$13) -> 5 | Y14: =AH13 -> u | Z14: = | AA14: =IF(AB14<0,"–","") -> – | AB14: =IF(W14="+",U14*AG13+X14*AK13,U14*AG13-X14*AK13) -> -65
A16: =IF(ISERROR(A13+1),"",IF(A13+1<=Worksheet!$C$6/2,A13+1,"")) -> 6 | B16: =RANDBETWEEN(1,Worksheet!$C$13) -> 4 | C16: =K16 -> r | D16: =IF(Worksheet!$C$14=1,"+",IF(Worksheet!$C$14=2,"–",CHOOSE(RANDBETWEEN(1,2),"+","–"))) -> – | E16: =RANDBETWEEN(1,Worksheet!$C$13) -> 4 | F16: =O16 -> s | G16: = | H16: =IF(I16<0,"–","") -> – | I16: =IF(D16="+",B16*N16+E16*R16,B16*N16-E16*R16) -> -60 | K16: =CHOOSE(RANDBETWEEN(1,24),"a","b","c","d","e","f","g","x","j","y","y","m","x","p","q","r","s","t","u","v","w","x","y","a") -> r | L16: = | M16: =IF(N16<0,"–","") ->  | N16: =IF(Worksheet!$C$9,RANDBETWEEN(-Worksheet!$C$10,Worksheet!$C$10),RANDBETWEEN(0,Worksheet!$C$10)) -> 25 | O16: =CHAR(CODE(K16)+1) -> s | P16: = | Q16: =IF(R16<0,"–","") ->  | R16: =IF(Worksheet!$C$9,RANDBETWEEN(-Worksheet!$C$10,Worksheet!$C$10),RANDBETWEEN(0,Worksheet!$C$10)) -> 40 | T16: =IF(ISERROR($A13+1),"",IF($A13+1<=Worksheet!$C$6/2,T13+1,"")) -> 18 | U16: =RANDBETWEEN(1,Worksheet!$C$13) -> 1 | V16: =AD16 -> u | W16: =IF(Worksheet!$C$14=1,"+",IF(Worksheet!$C$14=2,"–",CHOOSE(RANDBETWEEN(1,2),"+","–"))) -> – | X16: =RANDBETWEEN(1,Worksheet!$C$13) -> 1 | Y16: =AH16 -> v | Z16: = | AA16: =IF(AB16<0,"–","") -> – | AB16: =IF(W16="+",U16*AG16+X16*AK16,U16*AG16-X16*AK16) -> -12 | AD16: =CHOOSE(RANDBETWEEN(1,24),"a","b","c","d","e","f","g","x","j","y","y","m","x","p","q","r","s","t","u","v","w","x","y","a") -> u | AE16: = | AF16: =IF(AG16<0,"–","") ->  | AG16: =IF(Worksheet!$C$9,RANDBETWEEN(-Worksheet!$C$10,Worksheet!$C$10),RANDBETWEEN(0,Worksheet!$C$10)) -> 26 | AH16: =CHAR(CODE(AD16)+1) -> v | AI16: = | AJ16: =IF(AK16<0,"–","") ->  | AK16: =IF(Worksheet!$C$9,RANDBETWEEN(-Worksheet!$C$10,Worksheet!$C$10),RANDBETWEEN(0,Worksheet!$C$10)) -> 38
B17: =RANDBETWEEN(1,Worksheet!$C$13) -> 10 | C17: =K16 -> r | D17: =IF(Worksheet!$C$14=1,"+",IF(Worksheet!$C$14=2,"–",IF(Worksheet!$C$14=4,CHOOSE(RANDBETWEEN(1,2),"+","–"),IF(D16="+","–","+")))) -> + | E17: =RANDBETWEEN(1,Worksheet!$C$13) -> 2 | F17: =O16 -> s | G17: = | H17: =IF(I17<0,"–","") ->  | I17: =IF(D17="+",B17*N16+E17*R16,B17*N16-E17*R16) -> 330 | U17: =RANDBETWEEN(1,Worksheet!$C$13) -> 9 | V17: =AD16 -> u | W17: =IF(Worksheet!$C$14=1,"+",IF(Worksheet!$C$14=2,"–",IF(Worksheet!$C$14=4,CHOOSE(RANDBETWEEN(1,2),"+","–"),IF(W16="+","–","+")))) -> + | X17: =RANDBETWEEN(1,Worksheet!$C$13) -> 6 | Y17: =AH16 -> v | Z17: = | AA17: =IF(AB17<0,"–","") ->  | AB17: =IF(W17="+",U17*AG16+X17*AK16,U17*AG16-X17*AK16) -> 462
A19: =IF(ISERROR(A16+1),"",IF(A16+1<=Worksheet!$C$6/2,A16+1,"")) -> 7 | B19: =RANDBETWEEN(1,Worksheet!$C$13) -> 9 | C19: =K19 -> c | D19: =IF(Worksheet!$C$14=1,"+",IF(Worksheet!$C$14=2,"–",CHOOSE(RANDBETWEEN(1,2),"+","–"))) -> + | E19: =RANDBETWEEN(1,Worksheet!$C$13) -> 5 | F19: =O19 -> d | G19: = | H19: =IF(I19<0,"–","") ->  | I19: =IF(D19="+",B19*N19+E19*R19,B19*N19-E19*R19) -> 365 | K19: =CHOOSE(RANDBETWEEN(1,24),"a","b","c","d","e","f","g","x","j","y","y","m","x","p","q","r","s","t","u","v","w","x","y","a") -> c | L19: = | M19: =IF(N19<0,"–","") ->  | N19: =IF(Worksheet!$C$9,RANDBETWEEN(-Worksheet!$C$10,Worksheet!$C$10),RANDBETWEEN(0,Worksheet!$C$10)) -> 40 | O19: =CHAR(CODE(K19)+1) -> d | P19: = | Q19: =IF(R19<0,"–","") ->  | R19: =IF(Worksheet!$C$9,RANDBETWEEN(-Worksheet!$C$10,Worksheet!$C$10),RANDBETWEEN(0,Worksheet!$C$10)) -> 1 | T19: =IF(ISERROR($A16+1),"",IF($A16+1<=Worksheet!$C$6/2,T16+1,"")) -> 19 | U19: =RANDBETWEEN(1,Worksheet!$C$13) -> 9 | V19: =AD19 -> w | W19: =IF(Worksheet!$C$14=1,"+",IF(Worksheet!$C$14=2,"–",CHOOSE(RANDBETWEEN(1,2),"+","–"))) -> – | X19: =RANDBETWEEN(1,Worksheet!$C$13) -> 3 | Y19: =AH19 -> x | Z19: = | AA19: =IF(AB19<0,"–","") ->  | AB19: =IF(W19="+",U19*AG19+X19*AK19,U19*AG19-X19*AK19) -> 90 | AD19: =CHOOSE(RANDBETWEEN(1,24),"a","b","c","d","e","f","g","x","j","y","y","m","x","p","q","r","s","t","u","v","w","x","y","a") -> w | AE19: = | AF19: =IF(AG19<0,"–","") ->  | AG19: =IF(Worksheet!$C$9,RANDBETWEEN(-Worksheet!$C$10,Worksheet!$C$10),RANDBETWEEN(0,Worksheet!$C$10)) -> 15 | AH19: =CHAR(CODE(AD19)+1) -> x | AI19: = | AJ19: =IF(AK19<0,"–","") ->  | AK19: =IF(Worksheet!$C$9,RANDBETWEEN(-Worksheet!$C$10,Worksheet!$C$10),RANDBETWEEN(0,Worksheet!$C$10)) -> 15
B20: =RANDBETWEEN(1,Worksheet!$C$13) -> 5 | C20: =K19 -> c | D20: =IF(Worksheet!$C$14=1,"+",IF(Worksheet!$C$14=2,"–",IF(Worksheet!$C$14=4,CHOOSE(RANDBETWEEN(1,2),"+","–"),IF(D19="+","–","+")))) -> – | E20: =RANDBETWEEN(1,Worksheet!$C$13) -> 10 | F20: =O19 -> d | G20: = | H20: =IF(I20<0,"–","") ->  | I20: =IF(D20="+",B20*N19+E20*R19,B20*N19-E20*R19) -> 190 | U20: =RANDBETWEEN(1,Worksheet!$C$13) -> 10 | V20: =AD19 -> w | W20: =IF(Worksheet!$C$14=1,"+",IF(Worksheet!$C$14=2,"–",IF(Worksheet!$C$14=4,CHOOSE(RANDBETWEEN(1,2),"+","–"),IF(W19="+","–","+")))) -> – | X20: =RANDBETWEEN(1,Worksheet!$C$13) -> 1 | Y20: =AH19 -> x | Z20: = | AA20: =IF(AB20<0,"–","") ->  | AB20: =IF(W20="+",U20*AG19+X20*AK19,U20*AG19-X20*AK19) -> 135
A22: =IF(ISERROR(A19+1),"",IF(A19+1<=Worksheet!$C$6/2,A19+1,"")) -> 8 | B22: =RANDBETWEEN(1,Worksheet!$C$13) -> 3 | C22: =K22 -> w | D22: =IF(Worksheet!$C$14=1,"+",IF(Worksheet!$C$14=2,"–",CHOOSE(RANDBETWEEN(1,2),"+","–"))) -> + | E22: =RANDBETWEEN(1,Worksheet!$C$13) -> 9 | F22: =O22 -> x | G22: = | H22: =IF(I22<0,"–","") ->  | I22: =IF(D22="+",B22*N22+E22*R22,B22*N22-E22*R22) -> 483 | K22: =CHOOSE(RANDBETWEEN(1,24),"a","b","c","d","e","f","g","x","j","y","y","m","x","p","q","r","s","t","u","v","w","x","y","a") -> w | L22: = | M22: =IF(N22<0,"–","") ->  | N22: =IF(Worksheet!$C$9,RANDBETWEEN(-Worksheet!$C$10,Worksheet!$C$10),RANDBETWEEN(0,Worksheet!$C$10)) -> 32 | O22: =CHAR(CODE(K22)+1) -> x | P22: = | Q22: =IF(R22<0,"–","") ->  | R22: =IF(Worksheet!$C$9,RANDBETWEEN(-Worksheet!$C$10,Worksheet!$C$10),RANDBETWEEN(0,Worksheet!$C$10)) -> 43 | T22: =IF(ISERROR($A19+1),"",IF($A19+1<=Worksheet!$C$6/2,T19+1,"")) -> 20 | U22: =RANDBETWEEN(1,Worksheet!$C$13) -> 2 | V22: =AD22 -> j | W22: =IF(Worksheet!$C$14=1,"+",IF(Worksheet!$C$14=2,"–",CHOOSE(RANDBETWEEN(1,2),"+","–"))) -> + | X22: =RANDBETWEEN(1,Worksheet!$C$13) -> 9 | Y22: =AH22 -> k | Z22: = | AA22: =IF(AB22<0,"–","") ->  | AB22: =IF(W22="+",U22*AG22+X22*AK22,U22*AG22-X22*AK22) -> 342 | AD22: =CHOOSE(RANDBETWEEN(1,24),"a","b","c","d","e","f","g","x","j","y","y","m","x","p","q","r","s","t","u","v","w","x","y","a") -> j | AE22: = | AF22: =IF(AG22<0,"–","") ->  | AG22: =IF(Worksheet!$C$9,RANDBETWEEN(-Worksheet!$C$10,Worksheet!$C$10),RANDBETWEEN(0,Worksheet!$C$10)) -> 36 | AH22: =CHAR(CODE(AD22)+1) -> k | AI22: = | AJ22: =IF(AK22<0,"–","") ->  | AK22: =IF(Worksheet!$C$9,RANDBETWEEN(-Worksheet!$C$10,Worksheet!$C$10),RANDBETWEEN(0,Worksheet!$C$10)) -> 30
B23: =RANDBETWEEN(1,Worksheet!$C$13) -> 7 | C23: =K22 -> w | D23: =IF(Worksheet!$C$14=1,"+",IF(Worksheet!$C$14=2,"–",IF(Worksheet!$C$14=4,CHOOSE(RANDBETWEEN(1,2),"+","–"),IF(D22="+","–","+")))) -> + | E23: =RANDBETWEEN(1,Worksheet!$C$13) -> 6 | F23: =O22 -> x | G23: = | H23: =IF(I23<0,"–","") ->  | I23: =IF(D23="+",B23*N22+E23*R22,B23*N22-E23*R22) -> 482 | U23: =RANDBETWEEN(1,Worksheet!$C$13) -> 2 | V23: =AD22 -> j | W23: =IF(Worksheet!$C$14=1,"+",IF(Worksheet!$C$14=2,"–",IF(Worksheet!$C$14=4,CHOOSE(RANDBETWEEN(1,2),"+","–"),IF(W22="+","–","+")))) -> + | X23: =RANDBETWEEN(1,Worksheet!$C$13) -> 7 | Y23: =AH22 -> k | Z23: = | AA23: =IF(AB23<0,"–","") ->  | AB23: =IF(W23="+",U23*AG22+X23*AK22,U23*AG22-X23*AK22) -> 282
A25: =IF(ISERROR(A22+1),"",IF(A22+1<=Worksheet!$C$6/2,A22+1,"")) -> 9 | B25: =RANDBETWEEN(1,Worksheet!$C$13) -> 9 | C25: =K25 -> q | D25: =IF(Worksheet!$C$14=1,"+",IF(Worksheet!$C$14=2,"–",CHOOSE(RANDBETWEEN(1,2),"+","–"))) -> + | E25: =RANDBETWEEN(1,Worksheet!$C$13) -> 3 | F25: =O25 -> r | G25: = | H25: =IF(I25<0,"–","") ->  | I25: =IF(D25="+",B25*N25+E25*R25,B25*N25-E25*R25) -> 324 | K25: =CHOOSE(RANDBETWEEN(1,24),"a","b","c","d","e","f","g","x","j","y","y","m","x","p","q","r","s","t","u","v","w","x","y","a") -> q | L25: = | M25: =IF(N25<0,"–","") ->  | N25: =IF(Worksheet!$C$9,RANDBETWEEN(-Worksheet!$C$10,Worksheet!$C$10),RANDBETWEEN(0,Worksheet!$C$10)) -> 28 | O25: =CHAR(CODE(K25)+1) -> r | P25: = | Q25: =IF(R25<0,"–","") ->  | R25: =IF(Worksheet!$C$9,RANDBETWEEN(-Worksheet!$C$10,Worksheet!$C$10),RANDBETWEEN(0,Worksheet!$C$10)) -> 24 | T25: =IF(ISERROR($A22+1),"",IF($A22+1<=Worksheet!$C$6/2,T22+1,"")) -> 21 | U25: =RANDBETWEEN(1,Worksheet!$C$13) -> 10 | V25: =AD25 -> b | W25: =IF(Worksheet!$C$14=1,"+",IF(Worksheet!$C$14=2,"–",CHOOSE(RANDBETWEEN(1,2),"+","–"))) -> – | X25: =RANDBETWEEN(1,Worksheet!$C$13) -> 10 | Y25: =AH25 -> c | Z25: = | AA25: =IF(AB25<0,"–","") ->  | AB25: =IF(W25="+",U25*AG25+X25*AK25,U25*AG25-X25*AK25) -> 210 | AD25: =CHOOSE(RANDBETWEEN(1,24),"a","b","c","d","e","f","g","x","j","y","y","m","x","p","q","r","s","t","u","v","w","x","y","a") -> b | AE25: = | AF25: =IF(AG25<0,"–","") ->  | AG25: =IF(Worksheet!$C$9,RANDBETWEEN(-Worksheet!$C$10,Worksheet!$C$10),RANDBETWEEN(0,Worksheet!$C$10)) -> 37 | AH25: =CHAR(CODE(AD25)+1) -> c | AI25: = | AJ25: =IF(AK25<0,"–","") ->  | AK25: =IF(Worksheet!$C$9,RANDBETWEEN(-Worksheet!$C$10,Worksheet!$C$10),RANDBETWEEN(0,Worksheet!$C$10)) -> 16
B26: =RANDBETWEEN(1,Worksheet!$C$13) -> 6 | C26: =K25 -> q | D26: =IF(Worksheet!$C$14=1,"+",IF(Worksheet!$C$14=2,"–",IF(Worksheet!$C$14=4,CHOOSE(RANDBETWEEN(1,2),"+","–"),IF(D25="+","–","+")))) -> + | E26: =RANDBETWEEN(1,Worksheet!$C$13) -> 7 | F26: =O25 -> r | G26: = | H26: =IF(I26<0,"–","") ->  | I26: =IF(D26="+",B26*N25+E26*R25,B26*N25-E26*R25) -> 336 | U26: =RANDBETWEEN(1,Worksheet!$C$13) -> 6 | V26: =AD25 -> b | W26: =IF(Worksheet!$C$14=1,"+",IF(Worksheet!$C$14=2,"–",IF(Worksheet!$C$14=4,CHOOSE(RANDBETWEEN(1,2),"+","–"),IF(W25="+","–","+")))) -> + | X26: =RANDBETWEEN(1,Worksheet!$C$13) -> 6 | Y26: =AH25 -> c | Z26: = | AA26: =IF(AB26<0,"–","") ->  | AB26: =IF(W26="+",U26*AG25+X26*AK25,U26*AG25-X26*AK25) -> 318
A28: =IF(ISERROR(A25+1),"",IF(A25+1<=Worksheet!$C$6/2,A25+1,"")) -> 10 | B28: =RANDBETWEEN(1,Worksheet!$C$13) -> 4 | C28: =K28 -> x | D28: =IF(Worksheet!$C$14=1,"+",IF(Worksheet!$C$14=2,"–",CHOOSE(RANDBETWEEN(1,2),"+","–"))) -> – | E28: =RANDBETWEEN(1,Worksheet!$C$13) -> 9 | F28: =O28 -> y | G28: = | H28: =IF(I28<0,"–","") -> – | I28: =IF(D28="+",B28*N28+E28*R28,B28*N28-E28*R28) -> -225 | K28: =CHOOSE(RANDBETWEEN(1,24),"a","b","c","d","e","f","g","x","j","y","y","m","x","p","q","r","s","t","u","v","w","x","y","a") -> x | L28: = | M28: =IF(N28<0,"–","") ->  | N28: =IF(Worksheet!$C$9,RANDBETWEEN(-Worksheet!$C$10,Worksheet!$C$10),RANDBETWEEN(0,Worksheet!$C$10)) -> 9 | O28: =CHAR(CODE(K28)+1) -> y | P28: = | Q28: =IF(R28<0,"–","") ->  | R28: =IF(Worksheet!$C$9,RANDBETWEEN(-Worksheet!$C$10,Worksheet!$C$10),RANDBETWEEN(0,Worksheet!$C$10)) -> 29 | T28: =IF(ISERROR($A25+1),"",IF($A25+1<=Worksheet!$C$6/2,T25+1,"")) -> 22 | U28: =RANDBETWEEN(1,Worksheet!$C$13) -> 4 | V28: =AD28 -> m | W28: =IF(Worksheet!$C$14=1,"+",IF(Worksheet!$C$14=2,"–",CHOOSE(RANDBETWEEN(1,2),"+","–"))) -> + | X28: =RANDBETWEEN(1,Worksheet!$C$13) -> 7 | Y28: =AH28 -> n | Z28: = | AA28: =IF(AB28<0,"–","") ->  | AB28: =IF(W28="+",U28*AG28+X28*AK28,U28*AG28-X28*AK28) -> 430 | AD28: =CHOOSE(RANDBETWEEN(1,24),"a","b","c","d","e","f","g","x","j","y","y","m","x","p","q","r","s","t","u","v","w","x","y","a") -> m | AE28: = | AF28: =IF(AG28<0,"–","") ->  | AG28: =IF(Worksheet!$C$9,RANDBETWEEN(-Worksheet!$C$10,Worksheet!$C$10),RANDBETWEEN(0,Worksheet!$C$10)) -> 34 | AH28: =CHAR(CODE(AD28)+1) -> n | AI28: = | AJ28: =IF(AK28<0,"–","") ->  | AK28: =IF(Worksheet!$C$9,RANDBETWEEN(-Worksheet!$C$10,Worksheet!$C$10),RANDBETWEEN(0,Worksheet!$C$10)) -> 42
B29: =RANDBETWEEN(1,Worksheet!$C$13) -> 5 | C29: =K28 -> x | D29: =IF(Worksheet!$C$14=1,"+",IF(Worksheet!$C$14=2,"–",IF(Worksheet!$C$14=4,CHOOSE(RANDBETWEEN(1,2),"+","–"),IF(D28="+","–","+")))) -> – | E29: =RANDBETWEEN(1,Worksheet!$C$13) -> 5 | F29: =O28 -> y | G29: = | H29: =IF(I29<0,"–","") -> – | I29: =IF(D29="+",B29*N28+E29*R28,B29*N28-E29*R28) -> -100 | U29: =RANDBETWEEN(1,Worksheet!$C$13) -> 6 | V29: =AD28 -> m | W29: =IF(Worksheet!$C$14=1,"+",IF(Worksheet!$C$14=2,"–",IF(Worksheet!$C$14=4,CHOOSE(RANDBETWEEN(1,2),"+","–"),IF(W28="+","–","+")))) -> + | X29: =RANDBETWEEN(1,Worksheet!$C$13) -> 9 | Y29: =AH28 -> n | Z29: = | AA29: =IF(AB29<0,"–","") ->  | AB29: =IF(W29="+",U29*AG28+X29*AK28,U29*AG28-X29*AK28) -> 582
A31: =IF(ISERROR(A28+1),"",IF(A28+1<=Worksheet!$C$6/2,A28+1,"")) -> 11 | B31: =RANDBETWEEN(1,Worksheet!$C$13) -> 4 | C31: =K31 -> y | D31: =IF(Worksheet!$C$14=1,"+",IF(Worksheet!$C$14=2,"–",CHOOSE(RANDBETWEEN(1,2),"+","–"))) -> – | E31: =RANDBETWEEN(1,Worksheet!$C$13) -> 1 | F31: =O31 -> z | G31: = | H31: =IF(I31<0,"–","") ->  | I31: =IF(D31="+",B31*N31+E31*R31,B31*N31-E31*R31) -> 29 | K31: =CHOOSE(RANDBETWEEN(1,24),"a","b","c","d","e","f","g","x","j","y","y","m","x","p","q","r","s","t","u","v","w","x","y","a") -> y | L31: = | M31: =IF(N31<0,"–","") ->  | N31: =IF(Worksheet!$C$9,RANDBETWEEN(-Worksheet!$C$10,Worksheet!$C$10),RANDBETWEEN(0,Worksheet!$C$10)) -> 13 | O31: =CHAR(CODE(K31)+1) -> z | P31: = | Q31: =IF(R31<0,"–","") ->  | R31: =IF(Worksheet!$C$9,RANDBETWEEN(-Worksheet!$C$10,Worksheet!$C$10),RANDBETWEEN(0,Worksheet!$C$10)) -> 23 | T31: =IF(ISERROR($A28+1),"",IF($A28+1<=Worksheet!$C$6/2,T28+1,"")) -> 23 | U31: =RANDBETWEEN(1,Worksheet!$C$13) -> 1 | V31: =AD31 -> x | W31: =IF(Worksheet!$C$14=1,"+",IF(Worksheet!$C$14=2,"–",CHOOSE(RANDBETWEEN(1,2),"+","–"))) -> + | X31: =RANDBETWEEN(1,Worksheet!$C$13) -> 2 | Y31: =AH31 -> y | Z31: = | AA31: =IF(AB31<0,"–","") ->  | AB31: =IF(W31="+",U31*AG31+X31*AK31,U31*AG31-X31*AK31) -> 100 | AD31: =CHOOSE(RANDBETWEEN(1,24),"a","b","c","d","e","f","g","x","j","y","y","m","x","p","q","r","s","t","u","v","w","x","y","a") -> x | AE31: = | AF31: =IF(AG31<0,"–","") ->  | AG31: =IF(Worksheet!$C$9,RANDBETWEEN(-Worksheet!$C$10,Worksheet!$C$10),RANDBETWEEN(0,Worksheet!$C$10)) -> 12 | AH31: =CHAR(CODE(AD31)+1) -> y | AI31: = | AJ31: =IF(AK31<0,"–","") ->  | AK31: =IF(Worksheet!$C$9,RANDBETWEEN(-Worksheet!$C$10,Worksheet!$C$10),RANDBETWEEN(0,Worksheet!$C$10)) -> 44
B32: =RANDBETWEEN(1,Worksheet!$C$13) -> 8 | C32: =K31 -> y | D32: =IF(Worksheet!$C$14=1,"+",IF(Worksheet!$C$14=2,"–",IF(Worksheet!$C$14=4,CHOOSE(RANDBETWEEN(1,2),"+","–"),IF(D31="+","–","+")))) -> + | E32: =RANDBETWEEN(1,Worksheet!$C$13) -> 6 | F32: =O31 -> z | G32: = | H32: =IF(I32<0,"–","") ->  | I32: =IF(D32="+",B32*N31+E32*R31,B32*N31-E32*R31) -> 242 | U32: =RANDBETWEEN(1,Worksheet!$C$13) -> 9 | V32: =AD31 -> x | W32: =IF(Worksheet!$C$14=1,"+",IF(Worksheet!$C$14=2,"–",IF(Worksheet!$C$14=4,CHOOSE(RANDBETWEEN(1,2),"+","–"),IF(W31="+","–","+")))) -> + | X32: =RANDBETWEEN(1,Worksheet!$C$13) -> 3 | Y32: =AH31 -> y | Z32: = | AA32: =IF(AB32<0,"–","") ->  | AB32: =IF(W32="+",U32*AG31+X32*AK31,U32*AG31-X32*AK31) -> 240
A34: =IF(ISERROR(A31+1),"",IF(A31+1<=Worksheet!$C$6/2,A31+1,"")) -> 12 | B34: =RANDBETWEEN(1,Worksheet!$C$13) -> 2 | C34: =K34 -> d | D34: =IF(Worksheet!$C$14=1,"+",IF(Worksheet!$C$14=2,"–",CHOOSE(RANDBETWEEN(1,2),"+","–"))) -> – | E34: =RANDBETWEEN(1,Worksheet!$C$13) -> 8 | F34: =O34 -> e | G34: = | H34: =IF(I34<0,"–","") -> – | I34: =IF(D34="+",B34*N34+E34*R34,B34*N34-E34*R34) -> -146 | K34: =CHOOSE(RANDBETWEEN(1,24),"a","b","c","d","e","f","g","x","j","y","y","m","x","p","q","r","s","t","u","v","w","x","y","a") -> d | L34: = | M34: =IF(N34<0,"–","") ->  | N34: =IF(Worksheet!$C$9,RANDBETWEEN(-Worksheet!$C$10,Worksheet!$C$10),RANDBETWEEN(0,Worksheet!$C$10)) -> 39 | O34: =CHAR(CODE(K34)+1) -> e | P34: = | Q34: =IF(R34<0,"–","") ->  | R34: =IF(Worksheet!$C$9,RANDBETWEEN(-Worksheet!$C$10,Worksheet!$C$10),RANDBETWEEN(0,Worksheet!$C$10)) -> 28 | T34: =IF(ISERROR($A31+1),"",IF($A31+1<=Worksheet!$C$6/2,T31+1,"")) -> 24 | U34: =RANDBETWEEN(1,Worksheet!$C$13) -> 9 | V34: =AD34 -> e | W34: =IF(Worksheet!$C$14=1,"+",IF(Worksheet!$C$14=2,"–",CHOOSE(RANDBETWEEN(1,2),"+","–"))) -> – | X34: =RANDBETWEEN(1,Worksheet!$C$13) -> 1 | Y34: =AH34 -> f | Z34: = | AA34: =IF(AB34<0,"–","") ->  | AB34: =IF(W34="+",U34*AG34+X34*AK34,U34*AG34-X34*AK34) -> 80 | AD34: =CHOOSE(RANDBETWEEN(1,24),"a","b","c","d","e","f","g","x","j","y","y","m","x","p","q","r","s","t","u","v","w","x","y","a") -> e | AE34: = | AF34: =IF(AG34<0,"–","") ->  | AG34: =IF(Worksheet!$C$9,RANDBETWEEN(-Worksheet!$C$10,Worksheet!$C$10),RANDBETWEEN(0,Worksheet!$C$10)) -> 11 | AH34: =CHAR(CODE(AD34)+1) -> f | AI34: = | AJ34: =IF(AK34<0,"–","") ->  | AK34: =IF(Worksheet!$C$9,RANDBETWEEN(-Worksheet!$C$10,Worksheet!$C$10),RANDBETWEEN(0,Worksheet!$C$10)) -> 19
B35: =RANDBETWEEN(1,Worksheet!$C$13) -> 7 | C35: =K34 -> d | D35: =IF(Worksheet!$C$14=1,"+",IF(Worksheet!$C$14=2,"–",IF(Worksheet!$C$14=4,CHOOSE(RANDBETWEEN(1,2),"+","–"),IF(D34="+","–","+")))) -> + | E35: =RANDBETWEEN(1,Worksheet!$C$13) -> 8 | F35: =O34 -> e | G35: = | H35: =IF(I35<0,"–","") ->  | I35: =IF(D35="+",B35*N34+E35*R34,B35*N34-E35*R34) -> 497 | U35: =RANDBETWEEN(1,Worksheet!$C$13) -> 5 | V35: =AD34 -> e | W35: =IF(Worksheet!$C$14=1,"+",IF(Worksheet!$C$14=2,"–",IF(Worksheet!$C$14=4,CHOOSE(RANDBETWEEN(1,2),"+","–"),IF(W34="+","–","+")))) -> + | X35: =RANDBETWEEN(1,Worksheet!$C$13) -> 5 | Y35: =AH34 -> f | Z35: = | AA35: =IF(AB35<0,"–","") ->  | AB35: =IF(W35="+",U35*AG34+X35*AK34,U35*AG34-X35*AK34) -> 150
A37: =IF(ISERROR(A34+1),"",IF(A34+1<=Worksheet!$C$6/2,A34+1,"")) -> 13 | B37: =RANDBETWEEN(1,Worksheet!$C$13) -> 2 | C37: =K37 -> b | D37: =IF(Worksheet!$C$14=1,"+",IF(Worksheet!$C$14=2,"–",CHOOSE(RANDBETWEEN(1,2),"+","–"))) -> + | E37: =RANDBETWEEN(1,Worksheet!$C$13) -> 4 | F37: =O37 -> c | G37: = | H37: =IF(I37<0,"–","") ->  | I37: =IF(D37="+",B37*N37+E37*R37,B37*N37-E37*R37) -> 176 | K37: =CHOOSE(RANDBETWEEN(1,24),"a","b","c","d","e","f","g","x","j","y","y","m","x","p","q","r","s","t","u","v","w","x","y","a") -> b | L37: = | M37: =IF(N37<0,"–","") ->  | N37: =IF(Worksheet!$C$9,RANDBETWEEN(-Worksheet!$C$10,Worksheet!$C$10),RANDBETWEEN(0,Worksheet!$C$10)) -> 26 | O37: =CHAR(CODE(K37)+1) -> c | P37: = | Q37: =IF(R37<0,"–","") ->  | R37: =IF(Worksheet!$C$9,RANDBETWEEN(-Worksheet!$C$10,Worksheet!$C$10),RANDBETWEEN(0,Worksheet!$C$10)) -> 31 | T37: =IF(ISERROR($A34+1),"",IF($A34+1<=Worksheet!$C$6/2,T34+1,"")) -> 25 | U37: =RANDBETWEEN(1,Worksheet!$C$13) -> 8 | V37: =AD37 -> m | W37: =IF(Worksheet!$C$14=1,"+",IF(Worksheet!$C$14=2,"–",CHOOSE(RANDBETWEEN(1,2),"+","–"))) -> – | X37: =RANDBETWEEN(1,Worksheet!$C$13) -> 5 | Y37: =AH37 -> n | Z37: = | AA37: =IF(AB37<0,"–","") ->  | AB37: =IF(W37="+",U37*AG37+X37*AK37,U37*AG37-X37*AK37) -> 66 | AD37: =CHOOSE(RANDBETWEEN(1,24),"a","b","c","d","e","f","g","x","j","y","y","m","x","p","q","r","s","t","u","v","w","x","y","a") -> m | AE37: = | AF37: =IF(AG37<0,"–","") ->  | AG37: =IF(Worksheet!$C$9,RANDBETWEEN(-Worksheet!$C$10,Worksheet!$C$10),RANDBETWEEN(0,Worksheet!$C$10)) -> 32 | AH37: =CHAR(CODE(AD37)+1) -> n | AI37: = | AJ37: =IF(AK37<0,"–","") ->  | AK37: =IF(Worksheet!$C$9,RANDBETWEEN(-Worksheet!$C$10,Worksheet!$C$10),RANDBETWEEN(0,Worksheet!$C$10)) -> 38
B38: =RANDBETWEEN(1,Worksheet!$C$13) -> 7 | C38: =K37 -> b | D38: =IF(Worksheet!$C$14=1,"+",IF(Worksheet!$C$14=2,"–",IF(Worksheet!$C$14=4,CHOOSE(RANDBETWEEN(1,2),"+","–"),IF(D37="+","–","+")))) -> – | E38: =RANDBETWEEN(1,Worksheet!$C$13) -> 10 | F38: =O37 -> c | G38: = | H38: =IF(I38<0,"–","") -> – | I38: =IF(D38="+",B38*N37+E38*R37,B38*N37-E38*R37) -> -128 | U38: =RANDBETWEEN(1,Worksheet!$C$13) -> 5 | V38: =AD37 -> m | W38: =IF(Worksheet!$C$14=1,"+",IF(Worksheet!$C$14=2,"–",IF(Worksheet!$C$14=4,CHOOSE(RANDBETWEEN(1,2),"+","–"),IF(W37="+","–","+")))) -> – | X38: =RANDBETWEEN(1,Worksheet!$C$13) -> 10 | Y38: =AH37 -> n | Z38: = | AA38: =IF(AB38<0,"–","") -> – | AB38: =IF(W38="+",U38*AG37+X38*AK37,U38*AG37-X38*AK37) -> -220
